lending/lending_fUSD_20240621
["ID","MTS","AMOUNT","RATE_DAILY","PERIOD"]
[330036769,1718956668053,-500.0,0.00041643,31]
[330036770,1718956668086,-500.0,0.00041643,31]
[330036771,1718956668119,-500.0,0.00041643,31]
[330036772,1718956668152,-500.0,0.00041643,31]
[330036773,1718956668183,-547.01927026,0.00041643,31]
[330036774,1718956668216,-2862.11,0.00041643,31]
[330036775,1718956668247,-500.0,0.00041643,31]
[330036776,1718956668279,-500.0,0.00041643,31]
[330036777,1718956668310,-500.0,0.00041643,31]
[330036778,1718956668342,-500.0,0.00041643,31]
[330036779,1718956668372,-500.0,0.00041643,31]
[330036780,1718956668402,-921.75,0.00041643,31]
[330036781,1718956668432,-500.0,0.00041643,31]
[330036782,1718956668465,-500.0,0.00041643,31]
[330036783,1718956668497,-500.0,0.00041643,31]
[330036784,1718956668529,-500.0,0.00041643,31]
[330036785,1718956668561,-500.0,0.00041643,31]
[330036786,1718956668591,-500.0,0.00041643,31]
[330036787,1718956668622,-500.0,0.00041643,31]
[330036788,1718956668653,-500.0,0.00041643,31]
[330036789,1718956668684,-500.0,0.00041643,31]
[330036790,1718956668715,-500.0,0.00041643,31]
[330036791,1718956668746,-500.0,0.00041643,31]
[330036792,1718956668776,-1477.77,0.00041643,31]
[330036793,1718956668806,-504.34904026,0.00041643,31]
[330036794,1718956668838,-500.0,0.00041643,31]
[330036795,1718956668873,-500.0,0.00041643,31]
[330036796,1718956668908,-500.0,0.00041643,31]
[330036797,1718956668945,-557.27,0.00041643,31]
[330036798,1718956668980,-704.0,0.00041643,31]
[330036799,1718956669015,-649.31,0.00041643,31]
[330036800,1718956669050,-500.0,0.00041643,31]
[330036801,1718956669084,-500.0,0.00041643,31]
[330036802,1718956669115,-1202.28,0.00041643,31]
[330036803,1718956669145,-500.0,0.00041643,31]
[330036804,1718956669176,-500.0,0.00041643,31]
[330036805,1718956669207,-521.07,0.00041643,31]
[330036806,1718956669236,-500.0,0.00041643,31]
[330036807,1718956669267,-1013.22,0.00041643,31]
[330036808,1718956669299,-654.5,0.00041643,31]
[330036809,1718956669330,-623.67,0.00041643,31]
[330036810,1718956669362,-214.96245298,0.00041643,31]
[330036811,1718956669393,-500.0,0.00041643,31]
[330036812,1718956669424,-824.84,0.00041643,31]
[330036813,1718956669466,-500.0,0.00041643,31]
[330036814,1718956669500,-1334.38,0.00041643,31]
[330036815,1718956669533,-507.97817457,0.00041643,31]
[330036816,1718956669566,-500.0,0.00041643,31]
[330036817,1718956669598,-500.0,0.00041643,31]
[330036818,1718956669628,-500.0,0.00041643,31]
[330036819,1718956669658,-500.0,0.00041643,31]
[330036820,1718956669689,-500.0,0.00041643,31]
[330036821,1718956669723,-1479.55,0.00041643,31]
[330036822,1718956669753,-500.0,0.00041643,31]
[330036823,1718956669787,-1136.63,0.00041643,31]
[330036824,1718956669821,-500.0,0.00041643,31]
[330036825,1718956669857,-500.0,0.00041643,31]
[330036826,1718956669890,-496.71799664,0.00041643,31]
[330036827,1718956669922,-514.26004471,0.00041643,31]
[330036828,1718956669952,-500.0,0.00041643,31]
[330036829,1718956669983,-576.54,0.00041643,31]
[330036830,1718956670015,-1930.64,0.00041643,31]
[330036831,1718956670046,-634.67,0.00041643,31]
[330036832,1718956670078,-500.0,0.00041643,31]
[330036833,1718956670112,-500.0,0.00041643,31]
[330036834,1718956670146,-270.28240426,0.00041643,31]
[330036835,1718956670181,-1053.39,0.00041643,31]
[330036836,1718956670212,-419.40951401,0.00041643,31]
[330036837,1718956670246,-500.0,0.00041643,31]
[330036838,1718956670280,-694.25,0.00041643,31]
[330036839,1718956670313,-500.0,0.00041643,31]
[330036840,1718956670346,-500.0,0.00041643,31]
[330036841,1718956670377,-732.79,0.00041643,31]
[330036842,1718956670409,-2043.71,0.00041643,31]
[330036843,1718956670441,-500.0,0.00041643,31]
[330036844,1718956670473,-500.0,0.00041643,31]
[330036845,1718956670505,-500.0,0.00041643,31]
[330036846,1718956670536,-1198.81,0.00041643,31]
[330036847,1718956670572,-524.82,0.00041643,31]
[330036848,1718956670604,-547.56,0.00041643,31]
[330036849,1718956670639,-500.0,0.00041643,31]
[330036850,1718956670670,-500.0,0.00041643,31]
[330036851,1718956670700,-598.88,0.00041643,31]
[330036852,1718956670730,-500.0,0.00041643,31]
[330036853,1718956670760,-500.0,0.00041643,31]
[330036854,1718956670791,-500.0,0.00041643,31]
[330036855,1718956670822,-500.0,0.00041643,31]
[330036856,1718956670857,-1091.37,0.00041643,31]
[330036857,1718956670889,-500.0,0.00041643,31]
[330036858,1718956670925,-548.86953208,0.00041643,31]
[330036859,1718956670961,-608.99,0.00041643,31]
[330036860,1718956670991,-1305.69,0.00041643,31]
[330036861,1718956671022,-503.01,0.00041643,31]
[330036862,1718956671053,-1710.03,0.00041643,31]
[330036863,1718956671082,-500.0,0.00041643,31]
[330036864,1718956671116,-535.03,0.00041643,31]
[330036865,1718956671147,-500.0,0.00041643,31]
[330036866,1718956671180,-512.95141128,0.00041643,31]
[330036867,1718956671214,-751.31,0.00041643,31]
[330036868,1718956671246,-500.0,0.00041643,31]
[330036869,1718956671276,-500.0,0.00041643,31]
[330036870,1718956671308,-500.0,0.00041643,31]
[330036871,1718956671338,-523.08,0.00041643,31]
[330036872,1718956671369,-1029.71,0.00041643,31]
[330036873,1718956671398,-778.1,0.00041643,31]
[330036874,1718956671736,-500.0,0.00041643,31]
[330036875,1718956671770,-500.0,0.00041643,31]
[330036876,1718956671803,-521.08,0.00041643,31]
[330036877,1718956671835,-500.0,0.00041643,31]
[330036878,1718956671871,-500.0,0.00041643,31]
[330036879,1718956671906,-938.77,0.00041643,31]
[330036880,1718956671941,-796.24,0.00041643,31]
[330036881,1718956671981,-500.0,0.00041643,31]
[330036882,1718956672018,-577.45,0.00041643,31]
[330036883,1718956672051,-631.09,0.00041643,31]
[330036884,1718956672082,-813.4,0.00041643,31]
[330036885,1718956672115,-500.0,0.00041643,31]
[330036886,1718956672148,-814.17,0.00041643,31]
[330036887,1718956672181,-836.15,0.00041643,31]
[330036888,1718956672213,-798.17,0.00041643,31]
[330036889,1718956672245,-947.26,0.00041643,31]
[330036890,1718956672278,-500.0,0.00041643,31]
[330036891,1718956672309,-664.08,0.00041643,31]
[330036892,1718956672346,-500.0,0.00041643,31]
[330036893,1718956672382,-1110.12,0.00041643,31]
[330036894,1718956672419,-500.0,0.00041643,31]
[330036895,1718956672454,-500.0,0.00041643,31]
[330036896,1718956672487,-2083.15,0.00041643,31]
[330036897,1718956672520,-500.0,0.00041643,31]
[330036898,1718956672556,-500.0,0.00041643,31]
[330036899,1718956672589,-563.12337285,0.00041643,31]
[330036900,1718956672623,-500.0,0.00041643,31]
[330036901,1718956672658,-568.87,0.00041643,31]
[330036902,1718956672688,-500.0,0.00041643,31]
[330036903,1718956672719,-500.0,0.00041643,31]
[330036904,1718956672750,-913.33,0.00041643,31]
[330036905,1718956672783,-542.93,0.00041643,31]
[330036906,1718956672814,-904.22,0.00041643,31]
[330036907,1718956672849,-500.0,0.00041643,31]
[330036908,1718956672885,-1725.1,0.00041643,31]
[330036909,1718956672916,-500.0,0.00041643,31]
[330036910,1718956672951,-500.0,0.00041643,31]
[330036911,1718956672988,-1654.09,0.00041643,31]
[330036912,1718956673025,-500.0,0.00041643,31]
[330036913,1718956673064,-1266.6,0.00041643,31]
[330036914,1718956673100,-500.0,0.00041643,31]
[330036915,1718956673132,-500.0,0.00041643,31]
[330036916,1718956673165,-500.0,0.00041643,31]
[330036917,1718956673198,-1634.34,0.00041643,31]
[330036918,1718956673236,-679.53,0.00041643,31]
[330036919,1718956673275,-500.0,0.00041643,31]
[330036920,1718956673313,-500.0,0.00041643,31]
[330036921,1718956673350,-1195.59,0.00041643,31]
[330036922,1718956673384,-1647.62,0.00041643,31]
[330036923,1718956673419,-1276.61,0.00041643,31]
[330036924,1718956673452,-500.0,0.00041643,31]
[330036925,1718956673486,-500.0,0.00041643,31]
[330036926,1718956673519,-542.12,0.00041643,31]
[330036927,1718956673552,-500.0,0.00041643,31]
[330036928,1718956673588,-1692.27,0.00041643,31]
[330036929,1718956673622,-500.0,0.00041643,31]
[330036930,1718956673655,-500.0,0.00041643,31]
[330036931,1718956673688,-500.0,0.00041643,31]
[330036932,1718956673720,-500.0,0.00041643,31]
[330036933,1718956673752,-1532.07,0.00041643,31]
[330036934,1718956673785,-500.0,0.00041643,31]
[330036935,1718956673818,-648.64,0.00041643,31]
[330036936,1718956673853,-2188.81,0.00041643,31]
[330036937,1718956673889,-524.1,0.00041643,31]
[330036938,1718956673926,-583.6,0.00041643,31]
[330036939,1718956673960,-1891.87,0.00041643,31]
[330036940,1718956673995,-741.01,0.00041643,31]
[330036941,1718956674030,-869.31,0.00041643,31]
[330036942,1718956674065,-500.0,0.00041643,31]
[330036943,1718956674099,-500.0,0.00041643,31]
[330036944,1718956674134,-500.0,0.00041643,31]
[330036945,1718956674170,-590.10048632,0.00041643,31]
[330036946,1718956674209,-979.44,0.00041643,31]
[330036947,1718956674245,-500.0,0.00041643,31]
[330036948,1718956674279,-500.0,0.00041643,31]
[330036949,1718956674313,-642.81,0.00041643,31]
[330036950,1718956674348,-500.0,0.00041643,31]
[330036951,1718956674382,-500.0,0.00041643,31]
[330036952,1718956674419,-817.31,0.00041643,31]
[330036953,1718956674455,-500.0,0.00041643,31]
[330036954,1718956674492,-1990.64,0.00041643,31]
[330036955,1718956674527,-500.0,0.00041643,31]
[330036956,1718956674564,-500.0,0.00041643,31]
[330036957,1718956674601,-500.0,0.00041643,31]
[330036958,1718956674635,-500.0,0.00041643,31]
[330036959,1718956674670,-500.0,0.00041643,31]
[330036960,1718956674704,-500.0,0.00041643,31]
[330036961,1718956674742,-2125.76,0.00041643,31]
[330036962,1718956674776,-618.15,0.00041643,31]
[330036963,1718956674810,-500.0,0.00041643,31]
[330036964,1718956674847,-500.0,0.00041643,31]
[330036965,1718956674883,-559.15816971,0.00041643,31]
[330036966,1718956674923,-1408.0,0.00041643,31]
[330036967,1718956674959,-1644.48,0.00041643,31]
[330036968,1718956674991,-500.0,0.00041643,31]
[330036969,1718956675024,-500.0,0.00041643,31]
[330036970,1718956675055,-1081.88,0.00041643,31]
[330036971,1718956675087,-500.0,0.00041643,31]
[330036972,1718956675120,-500.0,0.00041643,31]
[330036973,1718956675154,-1130.5,0.00041643,31]
[330036974,1718956675186,-500.0,0.00041643,31]
[330036975,1718956675232,-500.0,0.00041643,31]
[330036976,1718956675268,-2370.45,0.00041643,31]
[330036977,1718956675304,-500.0,0.00041643,31]
[330036978,1718956675340,-9754.86,0.00041643,31]
[330036979,1718956675625,-862.92,0.00041643,31]
[330036980,1718956675659,-500.0,0.00041643,31]
[330036981,1718956675692,-500.0,0.00041643,31]
[330036982,1718956675726,-500.0,0.00041643,31]
[330036983,1718956675758,-912.28,0.00041643,31]
[330036984,1718956675790,-855.26,0.00041643,31]
[330036985,1718956675821,-500.0,0.00041643,31]
[330036986,1718956675859,-1862.16,0.00041643,31]
[330036987,1718956675893,-947.23,0.00041643,31]
[330036988,1718956675927,-501.41525893,0.00041643,31]
[330036989,1718956675962,-774.42,0.00041643,31]
[330036990,1718956675994,-500.0,0.00041643,31]
[330036991,1718956676027,-500.0,0.00041643,31]
[330036992,1718956676059,-1081.69,0.00041643,31]
[330036993,1718956676090,-500.0,0.00041643,31]
[330036994,1718956676121,-516.73314247,0.00041643,31]
[330036995,1718956676152,-1073.21,0.00041643,31]
[330036996,1718956676186,-500.0,0.00041643,31]
[330036997,1718956676223,-2940.37,0.00041643,31]
[330036998,1718956676260,-500.0,0.00041643,31]
[330036999,1718956676295,-500.0,0.00041643,31]
[330037000,1718956676331,-500.0,0.00041643,31]
[330037001,1718956676367,-500.0,0.00041643,31]
[330037002,1718956676405,-1167.67,0.00041643,31]
[330037003,1718956676441,-627.26,0.00041643,31]
[330037004,1718956676480,-500.0,0.00041643,31]
[330037005,1718956676518,-1329.19,0.00041643,31]
[330037006,1718956676556,-500.0,0.00041643,31]
[330037007,1718956676591,-500.0,0.00041643,31]
[330037008,1718956676625,-1066.12,0.00041643,31]
[330037009,1718956676657,-500.0,0.00041643,31]
[330037010,1718956676688,-774.59,0.00041643,31]
[330037011,1718956676720,-500.0,0.00041643,31]
[330037012,1718956676753,-500.0,0.00041643,31]
[330037013,1718956676788,-500.0,0.00041643,31]
[330037014,1718956676820,-500.0,0.00041643,31]
[330037015,1718956676852,-500.0,0.00041643,31]
[330037016,1718956676886,-506.85283958,0.00041643,31]
[330037017,1718956676918,-500.0,0.00041643,31]
[330037018,1718956676953,-500.0,0.00041643,31]
[330037019,1718956676987,-32551.53,0.00041643,31]
[330037020,1718956677020,-885.68,0.00041643,31]
[330037021,1718956677055,-500.0,0.00041643,31]
[330037022,1718956677089,-500.0,0.00041643,31]
[330037023,1718956677123,-500.0,0.00041643,31]
[330037024,1718956677158,-500.0,0.00041643,31]
[330037025,1718956677191,-500.0,0.00041643,31]
[330037026,1718956677223,-500.0,0.00041643,31]
[330037027,1718956677256,-838.21,0.00041643,31]
[330037028,1718956677291,-500.0,0.00041643,31]
[330037029,1718956677325,-13496.77,0.00041643,31]
[330037030,1718956677359,-500.0,0.00041643,31]
[330037031,1718956677393,-1218.16,0.00041643,31]
[330037032,1718956677425,-500.0,0.00041643,31]
[330037033,1718956677458,-500.0,0.00041643,31]
[330037034,1718956677491,-950.19,0.00041643,31]
[330037035,1718956677527,-697.69,0.00041643,31]
[330037036,1718956677561,-500.0,0.00041643,31]
[330037037,1718956677594,-500.0,0.00041643,31]
[330037038,1718956677629,-500.0,0.00041643,31]
[330037039,1718956677663,-500.0,0.00041643,31]
[330037040,1718956677696,-5000.0,0.00041643,31]
[330037041,1718956677731,-500.0,0.00041643,31]
[330037042,1718956677764,-500.0,0.00041643,31]
[330037043,1718956677798,-985.84,0.00041643,31]
[330037044,1718956677830,-500.0,0.00041643,31]
[330037045,1718956677870,-250.0,0.00041643,31]
[330037046,1718956677904,-500.0,0.00041643,31]
[330037047,1718956677938,-3042.3,0.00041643,31]
[330037048,1718956677969,-500.0,0.00041643,31]
[330037049,1718956678000,-1888.63,0.00041643,31]
[330037050,1718956678036,-500.0,0.00041643,31]
[330037051,1718956678066,-710.95,0.00041643,31]
[330037052,1718956678098,-500.0,0.00041643,31]
[330037053,1718956678131,-1540.74,0.00041643,31]
[330037054,1718956678163,-500.0,0.00041643,31]
[330037055,1718956678195,-707.0,0.00041643,31]
[330037056,1718956678227,-725.5,0.00041643,31]
[330037057,1718956678259,-500.0,0.00041643,31]
[330037058,1718956678291,-967.38,0.00041643,31]
[330037059,1718956678322,-500.0,0.00041643,31]
[330037060,1718956678354,-500.0,0.00041643,31]
[330037061,1718956678386,-3436.64,0.00041643,31]
[330037062,1718956678418,-3397.96,0.00041643,31]
[330037063,1718956678450,-781.3,0.00041643,31]
[330037064,1718956678481,-500.0,0.00041643,31]
[330037065,1718956678513,-500.0,0.00041643,31]
[330037066,1718956678544,-626.45,0.00041643,31]
[330037067,1718956678576,-500.0,0.00041643,31]
[330037068,1718956678607,-572.6,0.00041643,31]
[330037069,1718956678640,-500.0,0.00041643,31]
[330037070,1718956678672,-1748.28,0.00041643,31]
[330037071,1718956678703,-500.0,0.00041643,31]
[330037072,1718956678735,-2804.38,0.00041643,31]
[330037073,1718956678766,-500.0,0.00041643,31]
[330037074,1718956678798,-2000.0,0.00041643,31]
[330037075,1718956678829,-378.24234324,0.00041643,31]
[330037076,1718956678864,-975.32,0.00041643,31]
[330037077,1718956678896,-931.79,0.00041643,31]
[330037078,1718956678930,-1315.17,0.00041643,31]
[330037079,1718956678963,-9022.07,0.00041643,31]
[330037080,1718956678994,-500.0,0.00041643,31]
[330037081,1718956679025,-500.0,0.00041643,31]
[330037082,1718956679057,-1068.25,0.00041643,31]
[330037083,1718956679320,-866.81,0.00041643,31]
[330037084,1718956679367,-1759.65,0.00041643,31]
[330037085,1718956679407,-520.05,0.00041643,31]
[330037086,1718956679446,-500.0,0.00041643,31]
[330037087,1718956679484,-864.34,0.00041643,31]
[330037088,1718956679520,-1968.37,0.00041643,31]
[330037089,1718956679555,-500.0,0.00041643,31]
[330037090,1718956679591,-1120.37,0.00041643,31]
[330037091,1718956679626,-500.0,0.00041643,31]
[330037092,1718956679660,-572.29,0.00041643,31]
[330037093,1718956679693,-500.0,0.00041643,31]
[330037094,1718956679734,-2215.25,0.00041643,31]
[330037095,1718956679772,-4387.05,0.00041643,31]
[330037096,1718956679802,-5668.6,0.00041643,31]
[330037097,1718956679834,-514.17,0.00041643,31]
[330037098,1718956679871,-500.0,0.00041643,31]
[330037099,1718956679904,-500.0,0.00041643,31]
[330037100,1718956679941,-1207.43,0.00041643,31]
[330037101,1718956679976,-500.0,0.00041643,31]
[330037102,1718956680008,-705.81,0.00041643,31]
[330037103,1718956680040,-500.0,0.00041643,31]
[330037104,1718956680073,-1358.37,0.00041643,31]
[330037105,1718956680106,-500.0,0.00041643,31]
[330037106,1718956680138,-2288.87,0.00041643,31]
[330037107,1718956680171,-500.0,0.00041643,31]
[330037108,1718956680204,-1558.75,0.00041643,31]
[330037109,1718956680236,-500.0,0.00041643,31]
[330037110,1718956680269,-500.0,0.00041643,31]
[330037111,1718956680301,-1836.87,0.00041643,31]
[330037112,1718956680334,-625.32,0.00041643,31]
[330037113,1718956680365,-500.0,0.00041643,31]
[330037114,1718956680398,-3050.92,0.00041643,31]
[330037115,1718956680432,-1747.68,0.00041643,31]
[330037116,1718956680468,-500.0,0.00041643,31]
[330037117,1718956680502,-1268.04,0.00041643,31]
[330037118,1718956680534,-1179.68,0.00041643,31]
[330037119,1718956680569,-500.0,0.00041643,31]
[330037120,1718956680603,-2360.82,0.00041643,31]
[330037121,1718956680637,-3237.79,0.00041643,31]
[330037122,1718956680669,-500.0,0.00041643,31]
[330037123,1718956680701,-500.0,0.00041643,31]
[330037124,1718956680733,-2099.29,0.00041643,31]
[330037125,1718956680765,-4248.62,0.00041643,31]
[330037126,1718956680796,-500.0,0.00041643,31]
[330037127,1718956680827,-1620.74,0.00041643,31]
[330037128,1718956680864,-500.0,0.00041643,31]
[330037129,1718956680897,-500.0,0.00041643,31]
[330037130,1718956680932,-2733.95,0.00041643,31]
[330037131,1718956680964,-500.0,0.00041643,31]
[330037132,1718956680998,-770.73,0.00041643,31]
[330037133,1718956681030,-500.0,0.00041643,31]
[330037134,1718956681061,-1051.1,0.00041643,31]
[330037135,1718956681093,-517.36343368,0.00041643,31]
[330037136,1718956681125,-500.0,0.00041643,31]
[330037137,1718956681157,-500.0,0.00041643,31]
[330037138,1718956681189,-500.0,0.00041643,31]
[330037139,1718956681222,-860.02,0.00041643,31]
[330037140,1718956681256,-500.0,0.00041643,31]
[330037141,1718956681287,-500.0,0.00041643,31]
[330037142,1718956681318,-1033.9,0.00041643,31]
[330037143,1718956681352,-500.0,0.00041643,31]
[330037144,1718956681384,-4988.84,0.00041643,31]
[330037145,1718956681415,-2453.91,0.00041643,31]
[330037146,1718956681447,-500.0,0.00041643,31]
[330037147,1718956681479,-500.0,0.00041643,31]
[330037148,1718956681510,-500.0,0.00041643,31]
[330037149,1718956681543,-500.0,0.00041643,31]
[330037150,1718956681574,-500.0,0.00041643,31]
[330037151,1718956681606,-970.33,0.00041643,31]
[330037152,1718956681636,-510.0,0.00041643,120]
[330037153,1718956681668,-500.0,0.00041643,31]
[330037154,1718956681700,-617.18,0.00041643,31]
[330037155,1718956681732,-1588.68,0.00041643,31]
[330037156,1718956681764,-500.0,0.00041643,31]
[330037157,1718956681797,-1509.47,0.00041643,31]
[330037158,1718956681828,-500.0,0.00041643,31]
[330037159,1718956681862,-500.0,0.00041643,31]
[330037160,1718956681892,-500.0,0.00041643,31]
[330037161,1718956681926,-664.31,0.00041643,31]
[330037162,1718956681958,-500.0,0.00041643,31]
[330037163,1718956681991,-500.0,0.00041643,31]
[330037164,1718956682021,-688.95,0.00041643,31]
[330037165,1718956682053,-4595.02,0.00041643,31]
[330037166,1718956682086,-3300.1,0.00041643,31]
[330037167,1718956682118,-500.0,0.00041643,31]
[330037168,1718956682150,-2150.63,0.00041643,31]
[330037169,1718956682181,-4968.07,0.00041643,31]
[330037170,1718956682213,-1441.36,0.00041643,31]
[330037171,1718956682248,-1460.58,0.00041643,31]
[330037172,1718956682281,-1346.01,0.00041643,31]
[330037173,1718956682313,-500.0,0.00041643,31]
[330037174,1718956682344,-500.0,0.00041643,31]
[330037175,1718956682376,-9622.63,0.00041643,31]
[330037176,1718956682406,-500.0,0.00041643,31]
[330037177,1718956682438,-500.0,0.00041643,31]
[330037178,1718956682471,-3893.84,0.00041643,31]
[330037179,1718956682504,-500.0,0.00041643,31]
[330037180,1718956682536,-500.0,0.00041643,31]
[330037181,1718956682569,-4338.01,0.00041643,31]
[330037182,1718956682602,-500.0,0.00041643,31]
[330037183,1718956682632,-2111.76,0.00041643,31]
[330037184,1718956682663,-500.0,0.00041643,31]
[330037185,1718956682692,-525.69,0.00041643,31]
[330037186,1718956682724,-9470.05,0.00041643,31]
[330037187,1718956682758,-839.74,0.00041643,31]
[330037188,1718956683021,-500.0,0.00041643,31]
[330037189,1718956683058,-726.65,0.00041643,31]
[330037190,1718956683094,-500.0,0.00041643,90]
[330037191,1718956683130,-2609.81,0.00041643,31]
[330037192,1718956683164,-2084.38,0.00041643,31]
[330037193,1718956683198,-261.40958918,0.00041643,31]
[330037194,1718956683233,-1296.32,0.00041643,31]
[330037195,1718956683268,-2023.83,0.00041643,31]
[330037196,1718956683302,-500.0,0.00041643,31]
[330037197,1718956683335,-500.0,0.00041643,31]
[330037198,1718956683368,-500.0,0.00041643,31]
[330037199,1718956683402,-964.89,0.00041643,31]
[330037200,1718956683437,-500.0,0.00041643,31]
[330037201,1718956683481,-4718.65,0.00041643,31]
[330037202,1718956683514,-500.0,0.00041643,31]
[330037203,1718956683548,-500.0,0.00041643,31]
[330037204,1718956683581,-500.0,0.00041643,31]
[330037205,1718956683617,-558.32,0.00041643,31]
[330037206,1718956683648,-692.7,0.00041643,31]
[330037207,1718956683681,-500.0,0.00041643,31]
[330037208,1718956683715,-1466.59,0.00041643,31]
[330037209,1718956683748,-3102.45,0.00041643,31]
[330037210,1718956683782,-995.34,0.00041643,31]
[330037211,1718956683818,-500.0,0.00041643,31]
[330037212,1718956683853,-1769.9,0.00041643,31]
[330037213,1718956683886,-500.0,0.00041643,31]
[330037214,1718956683919,-500.0,0.00041643,31]
[330037215,1718956683957,-500.0,0.00041643,31]
[330037216,1718956684001,-14762.29,0.00041643,31]
[330037217,1718956684040,-500.0,0.00041643,31]
[330037218,1718956684075,-500.0,0.00041643,31]
[330037219,1718956684109,-500.0,0.00041643,31]
[330037220,1718956684142,-500.0,0.00041643,31]
[330037221,1718956684176,-1640.68,0.00041643,31]
[330037222,1718956684210,-500.0,0.00041643,31]
[330037223,1718956684243,-500.0,0.00041643,31]
[330037224,1718956684279,-11030.11,0.00041643,31]
[330037225,1718956684315,-2592.71,0.00041643,31]
[330037226,1718956684348,-2774.88,0.00041643,31]
[330037227,1718956684381,-523.15,0.00041643,31]
[330037228,1718956684413,-557.96,0.00041643,31]
[330037229,1718956684446,-1316.85,0.00041643,31]
[330037230,1718956684478,-500.0,0.00041643,31]
[330037231,1718956684529,-1287.84,0.00041643,31]
[330037232,1718956684561,-500.0,0.00041643,31]
[330037233,1718956684593,-3617.11,0.00041643,31]
[330037234,1718956684624,-500.0,0.00041643,31]
[330037235,1718956684657,-500.0,0.00041643,31]
[330037236,1718956684688,-4991.99,0.00041643,31]
[330037237,1718956684720,-2058.4,0.00041643,31]
[330037238,1718956684753,-7307.68,0.00041643,31]
[330037239,1718956684784,-500.0,0.00041643,31]
[330037240,1718956684815,-500.0,0.00041643,31]
[330037241,1718956684862,-500.0,0.00041643,31]
[330037242,1718956684896,-689.75,0.00041643,31]
[330037243,1718956684928,-12366.37,0.00041643,31]
[330037244,1718956684960,-500.0,0.00041643,31]
[330037245,1718956685008,-682.56,0.00041643,31]
[330037246,1718956685040,-500.0,0.00041643,31]
[330037247,1718956685073,-1435.98,0.00041643,31]
[330037248,1718956685105,-1044.29,0.00041643,31]
[330037249,1718956685137,-1609.7,0.00041643,31]
[330037250,1718956685168,-1442.63,0.00041643,31]
[330037251,1718956685200,-3273.66,0.00041643,31]
[330037252,1718956685230,-1129.79,0.00041643,31]
[330037253,1718956685260,-723.87,0.00041643,31]
[330037254,1718956685291,-500.0,0.00041643,31]
[330037255,1718956685322,-500.0,0.00041643,31]
[330037256,1718956685354,-500.0,0.00041643,31]
[330037257,1718956685388,-657.7,0.00041643,31]
[330037258,1718956685422,-500.0,0.00041643,31]
[330037259,1718956685454,-150.0,0.00041643,31]
[330037260,1718956685486,-4912.27,0.00041643,31]
[330037261,1718956685534,-1100.01,0.00041643,31]
[330037262,1718956685566,-1090.44,0.00041643,31]
[330037263,1718956685600,-548.63,0.00041643,31]
[330037264,1718956685633,-10504.93,0.00041643,31]
[330037265,1718956685666,-500.0,0.00041643,31]
[330037266,1718956685700,-500.0,0.00041643,31]
[330037267,1718956685732,-1418.84,0.00041643,31]
[330037268,1718956685765,-1407.73,0.00041643,31]